Workbook

Sheet Synthèse
B1: ACCORDS INTERNATIONAUX
B4: Paiements des prestations en espèces d'incapacité temporaire (assurances
B5: ="accident du travail-maladie professionnelle) en "&'Détail Bilatéraux'!$U$2 -> accident du travail-maladie professionnelle) en 2016
A7: CONVENTIONS BILATERALES | C7: Transfert de résidence autorisé | F7: Rechute dans l'autre pays | I7: Total des
B8: Pays | C8: Nombre de | D8: Nombre de jours | E8: Montant | F8: Nombre de | G8: Nombre de jours | H8: Montant | I8: montants
C9: bénéficiaires | D9: indemnisés | E9: (euros) | F9: bénéficiaires | G9: indemnisés | H9: (euros) | I9: (euros)
B10: Algérie | C10: 320 | D10: 9671 | E10: 457776.79 | F10: 1 | G10: 47 | H10: 2025.23 | I10: 461764.72
B11: Andorre | C11: 4 | D11: 19 | E11: 1084.06 | F11: 0 | G11: 0 | H11: 0 | I11: 1084.06
B12: Argentine | C12: 3 | D12: 71 | E12: 12426.9 | F12: 0 | G12: 0 | H12: 0 | I12: 12426.9
B13: Bénin | C13: 2 | D13: 36 | E13: 1664.19 | F13: 1 | G13: 6 | H13: 272.88 | I13: 1937.07 | K13: 1 | L13: =INDEX($B$10:$I$54,MATCH(LARGE(($I$10:$I$47,$I$52:$I$54),$K13),$I$10:$I$54,0),1) -> Maroc | M13: =INDEX($B$10:$I$54,MATCH(LARGE(($I$10:$I$47,$I$52:$I$54),$K13),$I$10:$I$54,0),8) -> 921637.85 | N13: =MAX(I10:I47,I52:I54)*1.1 -> 1013801.635
B14: Bosnie-Herzégovine | C14: 8 | D14: 230 | E14: 16089.14 | F14: 0 | G14: 0 | H14: 0 | I14: 16089.14 | K14: =K13+1 -> 2 | L14: =INDEX($B$10:$I$54,MATCH(LARGE(($I$10:$I$47,$I$52:$I$54),$K14),$I$10:$I$54,0),1) -> Algérie | M14: =INDEX($B$10:$I$54,MATCH(LARGE(($I$10:$I$47,$I$52:$I$54),$K14),$I$10:$I$54,0),8) -> 461764.72
B15: Brésil | C15: 4 | D15: 70 | E15: 8508.06 | F15: 0 | G15: 0 | H15: 0 | I15: 8508.06 | K15: =K14+1 -> 3 | L15: =INDEX($B$10:$I$54,MATCH(LARGE(($I$10:$I$47,$I$52:$I$54),$K15),$I$10:$I$54,0),1) -> Tunisie | M15: =INDEX($B$10:$I$54,MATCH(LARGE(($I$10:$I$47,$I$52:$I$54),$K15),$I$10:$I$54,0),8) -> 363590.55
B16: Cameroun | C16: 4 | D16: 83 | E16: 3801.06 | F16: 0 | G16: 0 | H16: 0 | I16: 5351.7 | K16: 4 | L16: =INDEX($B$10:$I$54,MATCH(LARGE(($I$10:$I$47,$I$52:$I$54),$K16),$I$10:$I$54,0),1) -> Turquie | M16: =INDEX($B$10:$I$54,MATCH(LARGE(($I$10:$I$47,$I$52:$I$54),$K16),$I$10:$I$54,0),8) -> 305130.7
B17: Canada | C17: 3 | D17: 65 | E17: 4122.49 | F17: 0 | G17: 0 | H17: 0 | I17: 4122.49 | K17: 5 | L17: =INDEX($B$10:$I$54,MATCH(LARGE(($I$10:$I$47,$I$52:$I$54),$K17),$I$10:$I$54,0),1) -> Mali | M17: =INDEX($B$10:$I$54,MATCH(LARGE(($I$10:$I$47,$I$52:$I$54),$K17),$I$10:$I$54,0),8) -> 45112.25
B18: Cap-Vert | C18: 6 | D18: 145 | E18: 7151.45 | F18: 0 | G18: 0 | H18: 0 | I18: 7151.45
B19: Chili | C19: 1 | D19: 34 | E19: 1277.38 | F19: 0 | G19: 0 | H19: 0 | I19: 1277.38
B20: Congo | C20: 6 | D20: 166 | E20: 8164.98 | F20: 0 | G20: 0 | H20: 0 | I20: 8164.98
B21: Corée | C21: 1 | D21: 23 | E21: 817.88 | F21: 0 | G21: 0 | H21: 0 | I21: 817.88
B22: Côte d'Ivoire | C22: 7 | D22: 233 | E22: 10760.08 | F22: 0 | G22: 0 | H22: 0 | I22: 10760.08
B23: Etats-Unis | C23: 4 | D23: 331 | E23: 19474.62 | F23: 0 | G23: 0 | H23: 0 | I23: 19474.62
B24: Gabon | C24: 0 | D24: 0 | E24: 0 | F24: 0 | G24: 0 | H24: 0 | I24: 0
B25: Guernesey | C25: 0 | D25: 0 | E25: 0 | F25: 0 | G25: 0 | H25: 0 | I25: 0
B26: Inde | C26: 1 | D26: 41 | E26: 2003.26 | F26: 0 | G26: 0 | H26: 0 | I26: 2003.26
B27: Israël | C27: 7 | D27: 174 | E27: 7352.36 | F27: 0 | G27: 0 | H27: 0 | I27: 7352.36
B28: Japon | C28: 0 | D28: 0 | E28: 0 | F28: 0 | G28: 0 | H28: 0 | I28: 0
B29: Jersey | C29: 0 | D29: 0 | E29: 0 | F29: 0 | G29: 0 | H29: 0 | I29: 0
B30: kosovo | C30: 8 | D30: 198 | E30: 8900.46 | F30: 0 | G30: 0 | H30: 0 | I30: 8900.46
B31: Macédoine | C31: 4 | D31: 113 | E31: 4869.85 | F31: 0 | G31: 0 | H31: 0 | I31: 4869.85
B32: Madagascar | C32: 6 | D32: 128 | E32: 12772.95 | F32: 0 | G32: 0 | H32: 0 | I32: 12772.95
B33: Mali | C33: 17 | D33: 870 | E33: 45112.25 | F33: 0 | G33: 0 | H33: 0 | I33: 45112.25
B34: Maroc | C34: 627 | D34: 19093 | E34: 913102.77 | F34: 5 | G34: 156 | H34: 8349.44 | I34: 921637.85
B35: Mauritanie | C35: 2 | D35: 28 | E35: 1438.6 | F35: 0 | G35: 0 | H35: 0 | I35: 1438.6
B36: Monaco | C36: 0 | D36: 0 | E36: 0 | F36: 0 | G36: 0 | H36: 0 | I36: 0
B37: Monténégro | C37: 6 | D37: 162 | E37: 7863.01 | F37: 0 | G37: 0 | H37: 0 | I37: 7863.01
B38: Niger | C38: 0 | D38: 0 | E38: 0 | F38: 0 | G38: 0 | H38: 0 | I38: 0
B39: Philippines | C39: 1 | D39: 22 | E39: 1552.32 | F39: 0 | G39: 0 | H39: 0 | I39: 1552.32
B40: Québec | C40: 10 | D40: 208 | E40: 12790.87 | F40: 0 | G40: 0 | H40: 0 | I40: 13558.21
B41: Saint-Marin | C41: 0 | D41: 0 | E41: 0 | F41: 0 | G41: 0 | H41: 0 | I41: 0
B42: Sénégal | C42: 25 | D42: 880 | E42: 37124.07 | F42: 1 | G42: 36 | H42: 1586.96 | I42: 38711.03
B43: Serbie | C43: 25 | D43: 697 | E43: 36088.41 | F43: 0 | G43: 0 | H43: 0 | I43: 36088.41
B44: Togo | C44: 2 | D44: 49 | E44: 1286.5 | F44: 0 | G44: 0 | H44: 0 | I44: 1286.5
B45: Tunisie | C45: 229 | D45: 7317 | E45: 359164.09 | F45: 2 | G45: 76 | H45: 4426.46 | I45: 363590.55
B46: Turquie | C46: 210 | D46: 6150 | E46: 305130.7 | F46: 0 | G46: 0 | H46: 0 | I46: 305130.7
B47: Uruguay | C47: 0 | D47: 0 | E47: 0 | F47: 0 | G47: 0 | H47: 0 | I47: 0
B48: ="Sous-total "&'Détail Bilatéraux'!$U$2 -> Sous-total 2016 | C48: =SUM(C10:C46) -> 1553 | D48: =SUM(D10:D47) -> 47307 | E48: 2309671.55 | F48: 10 | G48: 321 | H48: 16660.97 | I48: 2330798.84
B49: ="Sous-total "&'Détail Bilatéraux'!$U$2-1 -> Sous-total 2015 | C49: 1760 | D49: 52866 | E49: 2453233.82 | F49: 50 | G49: 1315 | H49: 61998.09 | I49: 2515231.91
B50: % évolution | C50: =IF(C49<>0,(C48-C49)/C49*100,"-") -> -11.76136364 | D50: =IF(D49<>0,(D48-D49)/D49*100,"-") -> -10.51526501 | E50: -5.851960332 | F50: -80 | G50: -75.58935361 | H50: -73.12663987 | I50: =IF(I49<>0,(I48-I49)/I49*100,"-") -> -7.332646714
A52: DECRETS DE COORDINATION | B52: Nouvelle-Calédonie | C52: 3 | D52: 108 | E52: 11501.04 | F52: 0 | G52: 0 | H52: 0 | I52: 11501.04
B53: Polynésie française | C53: 1 | D53: 67 | E53: 3605.27 | F53: 0 | G53: 0 | H53: 0 | I53: 4825.74
B54: Saint-Pierre-et-Miquelon | C54: 0 | D54: 0 | E54: 0 | F54: 0 | G54: 0 | H54: 0 | I54: 0
B55: ="Sous-total "&'Détail Bilatéraux'!$U$2 -> Sous-total 2016 | C55: =SUM(C52:C54) -> 4 | D55: 175 | E55: 15106.31 | F55: 0 | G55: 0 | H55: 0 | I55: =SUM(I52:I54) -> 16326.78
B56: ="Sous-total "&'Détail Bilatéraux'!$U$2-1 -> Sous-total 2015 | C56: 7 | D56: 223 | E56: 15026.36 | F56: 1 | G56: 19 | H56: 812.63 | I56: 15838.99
B57: % évolution | C57: =IF(C56<>0,(C55-C56)/C56*100,"-") -> -42.85714286 | D57: =IF(D56<>0,(D55-D56)/D56*100,"-") -> -21.52466368 | E57: 0.5320649845 | F57: -100 | G57: -100 | H57: -100 | I57: 3.079678692
B59: ="Total Général "&'Détail Bilatéraux'!$U$2 -> Total Général 2016 | C59: =C48+C55 -> 1557 | D59: 47482 | E59: 2324777.86 | F59: 10 | G59: 321 | H59: 16660.97 | I59: 2347125.62 | J59: (1)
B60: ="Total Général "&'Détail Bilatéraux'!$U$2-1 -> Total Général 2015 | C60: 1767 | D60: 53089 | E60: 2468260.18 | F60: 51 | G60: 1334 | H60: 62810.72 | I60: 2531070.9
B61: % évolution | C61: =IF(C60<>0,(C59-C60)/C60*100,"-") -> -11.88455008 | D61: =IF(D60<>0,(D59-D60)/D60*100,"-") -> -10.56150992 | E61: -5.813095441 | F61: -80.39215686 | G61: -75.93703148 | H61: -73.47432094 | I61: =IF(I60<>0,(I59-I60)/I60*100,"-") -> -7.26748824
B62: (1) : dont 5 687 euros versés dans le cadre de séjours temporaires et répartis selon les pays suivants :
B63: . 1 962,7 euros en Algérie, 1 550,64 au Cameroun, 185,64 au Maroc, 767,34 au Québéc et 1 220,47 en Polynésie française.
A65: Evolution sur 10 ans des prestations en espèces d'incapacité temporaire (assurances AT-MP)
B67: Transfert de résidence autorisé | E67: Rechute dans l'autre pays | H67: Séjour temporaire | K67: Total
B68: Nombre de | C68: Nombre | D68: Montant | E68: Nombre de | F68: Nombre | G68: Montant | H68: Nombre de | I68: Nombre | J68: Montant | K68: Nombre de | L68: Montant | N68: %
A69: Année | B69: bénéfi | C69: de jours | D69: (euros) | E69: bénéfi | F69: de jours | G69: (euros) | H69: bénéfi | I69: de jours | J69: (euros) | K69: bénéfi | L69: (euros) | N69: évolu-
B70: ciaires | C70: indemnisés | E70: ciaires | F70: indemnisés | H70: ciaires | I70: indemnisés | K70: ciaires | N70: tion
A71: 2007 | B71: 2249 | C71: 78401 | D71: 3420148.74 | E71: 8 | F71: 593 | G71: 22024.91 | H71: 0 | I71: 0 | J71: 0 | K71: =B71+E71+H71 -> 2257 | L71: 3442173.65
A72: 2008 | B72: 2242 | C72: 76049 | D72: 3504445.45 | E72: 11 | F72: 579 | G72: 19866.08 | H72: 0 | I72: 0 | J72: 0 | K72: 2253 | L72: 3524311.53 | N72: =(L72-L71)/L71*100 -> 2.386221276
A73: 2009 | B73: 2460 | C73: 81791 | D73: 3618265.01 | E73: 8 | F73: 265 | G73: 13791.01 | H73: 0 | I73: 0 | J73: 0 | K73: 2468 | L73: 3632056.02 | N73: 3.057178376
A74: 2010 | B74: 2253 | C74: 74723 | D74: 3371648.38 | E74: 6 | F74: 333 | G74: 6892.47 | H74: 0 | I74: 0 | J74: 0 | K74: 2259 | L74: 3378540.85 | N74: -6.979935568
A75: 2011 | B75: 2018 | C75: 64116 | D75: 2978641.06 | E75: 4 | F75: 96 | G75: 5135.78 | H75: 0 | I75: 0 | J75: 0 | K75: 2022 | L75: 2983776.84 | N75: -11.68445277
A76: 2012 | B76: 1954 | C76: 59938 | D76: 2716495.26 | E76: 19 | F76: 598 | G76: 27287.23 | H76: 1 | I76: 15 | J76: 439.65 | K76: 1974 | L76: 2744222.14 | N76: -8.028572941
A77: 2013 | B77: 1759 | C77: 51937 | D77: 2402448.52 | E77: 17 | F77: 498 | G77: 25308.3 | H77: 3 | I77: 91 | J77: 4436.71 | K77: 1779 | L77: 2432193.53 | N77: -11.37038454
A78: 2014 | B78: 1745 | C78: 48346 | D78: 2285089.29 | E78: 45 | F78: 1333 | G78: 66016.23 | H78: 0 | I78: 0 | J78: 0 | K78: 1790 | L78: 2351105.52 | N78: -3.333945634
A79: 2015 | B79: 1767 | C79: 53089 | D79: 2468260.18 | E79: 51 | F79: 1334 | G79: 62810.72 | H79: 0 | I79: 0 | J79: 0 | K79: 1818 | L79: 2531070.9 | N79: 7.654500339
A80: 2016 | B80: 1557 | C80: 47482 | D80: 2324777.86 | E80: 10 | F80: 321 | G80: 16660.97 | H80: 6 | I80: 123 | J80: 5686.79 | K80: 1573 | L80: 2347125.62 | N80: -7.26748824

Sheet Détail Bilatéraux
B1: ACCORDS INTERNATIONAUX | T1: 1 | U1: =INDEX(ListePays,$T$1,2) -> 0
U2: 2016
O3: Aller directement vers :
B4: Paiements des prestations en espèces d'incapacité temporaire
B5: (assurances AT-MP)
A7: CONVENTIONS BILATERALES | D7: Transfert de résidence autorisé | G7: Rechute dans l'autre pays | J7: Total des
B8: Pays | C8: Régime | D8: Nombre de | E8: Nombre de jours | F8: Montant | G8: Nombre de | H8: Nombre de jours | I8: Montant | J8: montants
D9: bénéficiaires | E9: indemnisés | F9: (euros) | G9: bénéficiaires | H9: indemnisés | I9: (euros) | J9: (euros)
C10: Général | D10: 320 | E10: 9671 | F10: 457776.79 | G10: 1 | H10: 47 | I10: 2025.23 | J10: 461764.72
C11: Agricole | D11: 0 | E11: 0 | F11: 0 | G11: 0 | H11: 0 | I11: 0 | J11: 0
B12: Algérie | C12: Minier | D12: 0 | E12: 0 | F12: 0 | G12: 0 | H12: 0 | I12: 0 | J12: 0
C13: Total 2016 | D13: =SUM(D10:D12) -> 320 | E13: 9671 | F13: 457776.79 | G13: 1 | H13: 47 | I13: 2025.23 | J13: =SUM(J10:J12) -> 461764.72
C14: Total 2015 | D14: 314 | E14: 9839 | F14: 441154.96 | G14: 13 | H14: 222 | I14: 8910.95 | J14: 450065.91
C15: % d'évolution | D15: =IF(D14<> 0,((D13-D14)/D14*100)," - ") -> 1.910828025 | E15: =IF(E14<>0,((E13-E14)/E14*100)," - ") -> -1.707490599 | F15: 3.767798508 | G15: -92.30769231 | H15: -78.82882883 | I15: -77.27256914 | J15: 2.599354837
C16: Général | D16: 4 | E16: 19 | F16: 1084.06 | G16: 0 | H16: 0 | I16: 0 | J16: 1084.06
C17: Agricole | D17: 0 | E17: 0 | F17: 0 | G17: 0 | H17: 0 | I17: 0 | J17: 0
B18: Andorre | C18: Minier | D18: 0 | E18: 0 | F18: 0 | G18: 0 | H18: 0 | I18: 0 | J18: 0
C19: Total 2016 | D19: =SUM(D16:D18) -> 4 | E19: 19 | F19: 1084.06 | G19: 0 | H19: 0 | I19: 0 | J19: 1084.06
C20: Total 2015 | D20: 1 | E20: 5 | F20: 217.4 | G20: 0 | H20: 0 | I20: 0 | J20: 217.4
C21: % d'évolution | D21: =IF(D20<> 0,((D19-D20)/D20*100)," - ") -> 300 | E21: =IF(E20<>0,((E19-E20)/E20*100)," - ") -> 280 | F21: 398.6476541 | G21: - | H21: - | I21: - | J21: 398.6476541
C22: Général | D22: 3 | E22: 71 | F22: 12426.9 | G22: 0 | H22: 0 | I22: 0 | J22: 12426.9
C23: Agricole | D23: 0 | E23: 0 | F23: 0 | G23: 0 | H23: 0 | I23: 0 | J23: 0
B24: Argentine | C24: Minier | D24: 0 | E24: 0 | F24: 0 | G24: 0 | H24: 0 | I24: 0 | J24: 0
C25: Total 2016 | D25: =SUM(D22:D24) -> 3 | E25: 71 | F25: 12426.9 | G25: 0 | H25: 0 | I25: 0 | J25: =SUM(J22:J24) -> 12426.9
C26: Total 2015 | D26: 2 | E26: 26 | F26: 3944.89 | G26: 0 | H26: 0 | I26: 0 | J26: 3944.89
C27: % d'évolution | D27: =IF(D26<> 0,((D25-D26)/D26*100)," - ") -> 50 | E27: =IF(E26<>0,((E25-E26)/E26*100)," - ") -> 173.0769231 | F27: 215.0125859 | G27: - | H27: - | I27: - | J27: 215.0125859
C28: Général | D28: 2 | E28: 36 | F28: 1664.19 | G28: 1 | H28: 6 | I28: 272.88 | J28: 1937.07
C29: Agricole | D29: 0 | E29: 0 | F29: 0 | G29: 0 | H29: 0 | I29: 0 | J29: 0
B30: Bénin | C30: Minier | D30: 0 | E30: 0 | F30: 0 | G30: 0 | H30: 0 | I30: 0 | J30: 0
C31: Total 2016 | D31: =SUM(D28:D30) -> 2 | E31: 36 | F31: 1664.19 | G31: 1 | H31: 6 | I31: 272.88 | J31: =SUM(J28:J30) -> 1937.07
C32: Total 2015 | D32: 1 | E32: 29 | F32: 1212.78 | G32: 0 | H32: 0 | I32: 0 | J32: 1212.78
C33: % d'évolution | D33: =IF(D32<> 0,((D31-D32)/D32*100)," - ") -> 100 | E33: =IF(E32<>0,((E31-E32)/E32*100)," - ") -> 24.13793103 | F33: 37.22109533 | G33: - | H33: - | I33: - | J33: 59.72146638
C34: Général | D34: 8 | E34: 230 | F34: 16089.14 | G34: 0 | H34: 0 | I34: 0 | J34: 16089.14
C35: Agricole | D35: 0 | E35: 0 | F35: 0 | G35: 0 | H35: 0 | I35: 0 | J35: 0
B36: Bosnie-Herzégovine | C36: Minier | D36: 0 | E36: 0 | F36: 0 | G36: 0 | H36: 0 | I36: 0 | J36: 0
C37: Total 2016 | D37: =SUM(D34:D36) -> 8 | E37: 230 | F37: 16089.14 | G37: 0 | H37: 0 | I37: 0 | J37: =SUM(J34:J36) -> 16089.14
C38: Total 2015 | D38: 11 | E38: 293 | F38: 16957.96 | G38: 0 | H38: 0 | I38: 0 | J38: 16957.96
C39: % d'évolution | D39: =IF(D38<> 0,((D37-D38)/D38*100)," - ") -> -27.27272727 | E39: =IF(E38<>0,((E37-E38)/E38*100)," - ") -> -21.50170648 | F39: -5.123375689 | G39: - | H39: - | I39: - | J39: -5.123375689
C40: Général | D40: 4 | E40: 70 | F40: 8508.06 | G40: 0 | H40: 0 | I40: 0 | J40: 8508.06
C41: Agricole | D41: 0 | E41: 0 | F41: 0 | G41: 0 | H41: 0 | I41: 0 | J41: 0
B42: Brésil | C42: Minier | D42: 0 | E42: 0 | F42: 0 | G42: 0 | H42: 0 | I42: 0 | J42: 0
C43: Total 2016 | D43: =SUM(D40:D42) -> 4 | E43: 70 | F43: 8508.06 | G43: 0 | H43: 0 | I43: 0 | J43: =SUM(J40:J42) -> 8508.06
C44: Total 2015 | D44: 1 | E44: 67 | F44: 2077 | G44: 0 | H44: 0 | I44: 0 | J44: 2077
C45: % d'évolution | D45: =IF(D44<> 0,((D43-D44)/D44*100)," - ") -> 300 | E45: =IF(E44<>0,((E43-E44)/E44*100)," - ") -> 4.47761194 | F45: 309.6321618 | G45: - | H45: - | I45: - | J45: 309.6321618
C46: Général | D46: 4 | E46: 83 | F46: 3801.06 | G46: 0 | H46: 0 | I46: 0 | J46: 5351.7
C47: Agricole | D47: 0 | E47: 0 | F47: 0 | G47: 0 | H47: 0 | I47: 0 | J47: 0
B48: Cameroun | C48: Minier | D48: 0 | E48: 0 | F48: 0 | G48: 0 | H48: 0 | I48: 0 | J48: 0
C49: Total 2016 | D49: =SUM(D46:D48) -> 4 | E49: 83 | F49: 3801.06 | G49: 0 | H49: 0 | I49: 0 | J49: =SUM(J46:J48) -> 5351.7
C50: Total 2015 | D50: 5 | E50: 123 | F50: 5649.72 | G50: 1 | H50: 26 | I50: 1478.88 | J50: 7128.6
C51: % d'évolution | D51: =IF(D50<> 0,((D49-D50)/D50*100)," - ") -> -20 | E51: =IF(E50<>0,((E49-E50)/E50*100)," - ") -> -32.5203252 | F51: -32.7212676 | G51: -100 | H51: -100 | I51: -100 | J51: -24.926353
C52: Général | D52: 3 | E52: 65 | F52: 4122.49 | G52: 0 | H52: 0 | I52: 0 | J52: 4122.49
C53: Agricole | D53: 0 | E53: 0 | F53: 0 | G53: 0 | H53: 0 | I53: 0 | J53: 0
B54: Canada | C54: Minier | D54: 0 | E54: 0 | F54: 0 | G54: 0 | H54: 0 | I54: 0 | J54: 0
C55: Total 2016 | D55: =SUM(D52:D54) -> 3 | E55: 65 | F55: 4122.49 | G55: 0 | H55: 0 | I55: 0 | J55: =SUM(J52:J54) -> 4122.49
C56: Total 2015 | D56: 0 | E56: 0 | F56: 0 | G56: 0 | H56: 0 | I56: 0 | J56: 0
C57: % d'évolution | D57: =IF(D56<> 0,((D55-D56)/D56*100)," - ") -> - | E57: =IF(E56<>0,((E55-E56)/E56*100)," - ") -> - | F57: - | G57: - | H57: - | I57: - | J57: -
C58: Général | D58: 6 | E58: 145 | F58: 7151.45 | G58: 0 | H58: 0 | I58: 0 | J58: 7151.45
C59: Agricole | D59: 0 | E59: 0 | F59: 0 | G59: 0 | H59: 0 | I59: 0 | J59: 0
B60: Cap-Vert | C60: Minier | D60: 0 | E60: 0 | F60: 0 | G60: 0 | H60: 0 | I60: 0 | J60: 0
C61: Total 2016 | D61: =SUM(D58:D60) -> 6 | E61: 145 | F61: 7151.45 | G61: 0 | H61: 0 | I61: 0 | J61: =SUM(J58:J60) -> 7151.45
C62: Total 2015 | D62: 6 | E62: 188 | F62: 9598.52 | G62: 0 | H62: 0 | I62: 0 | J62: 9598.52
C63: % d'évolution | D63: =IF(D62<> 0,((D61-D62)/D62*100)," - ") -> 0 | E63: =IF(E62<>0,((E61-E62)/E62*100)," - ") -> -22.87234043 | F63: -25.49424286 | G63: - | H63: - | I63: - | J63: -25.49424286
C64: Général | D64: 1 | E64: 34 | F64: 1277.38 | G64: 0 | H64: 0 | I64: 0 | J64: 1277.38
C65: Agricole | D65: 0 | E65: 0 | F65: 0 | G65: 0 | H65: 0 | I65: 0 | J65: 0
B66: Chili | C66: Minier | D66: 0 | E66: 0 | F66: 0 | G66: 0 | H66: 0 | I66: 0 | J66: 0
C67: Total 2016 | D67: =SUM(D64:D66) -> 1 | E67: 34 | F67: 1277.38 | G67: 0 | H67: 0 | I67: 0 | J67: =SUM(J64:J66) -> 1277.38
C68: Total 2015 | D68: 0 | E68: 0 | F68: 0 | G68: 0 | H68: 0 | I68: 0
C69: % d'évolution | D69: =IF(D68<> 0,((D67-D68)/D68*100)," - ") -> - | E69: =IF(E68<>0,((E67-E68)/E68*100)," - ") -> - | F69: - | G69: - | H69: - | I69: - | J69: -
A70: CONVENTIONS BILATERALES | C70: Général | D70: 6 | E70: 166 | F70: 8164.98 | G70: 0 | H70: 0 | I70: 0 | J70: 8164.98
C71: Agricole | D71: 0 | E71: 0 | F71: 0 | G71: 0 | H71: 0 | I71: 0 | J71: 0
B72: Congo | C72: Minier | D72: 0 | E72: 0 | F72: 0 | G72: 0 | H72: 0 | I72: 0 | J72: 0
C73: Total 2016 | D73: =SUM(D70:D72) -> 6 | E73: 166 | F73: 8164.98 | G73: 0 | H73: 0 | I73: 0 | J73: =SUM(J70:J72) -> 8164.98
C74: Total 2015 | D74: 9 | E74: 192 | F74: 11466.52 | G74: 0 | H74: 0 | I74: 0 | J74: 11466.52
C75: % d'évolution | D75: =IF(D74<> 0,((D73-D74)/D74*100)," - ") -> -33.33333333 | E75: =IF(E74<>0,((E73-E74)/E74*100)," - ") -> -13.54166667 | F75: =IF(F74<>0,((F73-F74)/F74*100)," - ") -> -28.79286828 | G75: =IF(G74<>0,((G73-G74)/G74*100)," - ") -> - | H75: =IF(H74<> 0,((H73-H74)/H74*100)," - ") -> - | I75: =IF(I74<>0,((I73-I74)/I74*100)," - ") -> - | J75: =IF(J74<>0,((J73-J74)/J74*100)," - ") -> -28.79286828
C76: Général | D76: 1 | E76: 23 | F76: 817.88 | G76: 0 | H76: 0 | I76: 0 | J76: 817.88
C77: Agricole | D77: 0 | E77: 0 | F77: 0 | G77: 0 | H77: 0 | I77: 0 | J77: 0
B78: Corée | C78: Minier | D78: 0 | E78: 0 | F78: 0 | G78: 0 | H78: 0 | I78: 0 | J78: 0
C79: Total 2016 | D79: =SUM(D76:D78) -> 1 | E79: 23 | F79: 817.88 | G79: 0 | H79: 0 | I79: 0 | J79: =SUM(J76:J78) -> 817.88
C80: Total 2015 | D80: 0 | E80: 0 | F80: 0 | G80: 0 | H80: 0 | I80: 0 | J80: 0
C81: % d'évolution | D81: =IF(D80<> 0,((D79-D80)/D80*100)," - ") -> - | E81: =IF(E80<>0,((E79-E80)/E80*100)," - ") -> - | F81: =IF(F80<>0,((F79-F80)/F80*100)," - ") -> - | G81: =IF(G80<>0,((G79-G80)/G80*100)," - ") -> - | H81: =IF(H80<> 0,((H79-H80)/H80*100)," - ") -> - | I81: =IF(I80<>0,((I79-I80)/I80*100)," - ") -> - | J81: =IF(J80<>0,((J79-J80)/J80*100)," - ") -> -
C82: Général | D82: 7 | E82: 233 | F82: 10760.08 | G82: 0 | H82: 0 | I82: 0 | J82: 10760.08
C83: Agricole | D83: 0 | E83: 0 | F83: 0 | G83: 0 | H83: 0 | I83: 0 | J83: 0
B84: Côte d'Ivoire | C84: Minier | D84: 0 | E84: 0 | F84: 0 | G84: 0 | H84: 0 | I84: 0 | J84: 0
C85: Total 2016 | D85: =SUM(D82:D84) -> 7 | E85: 233 | F85: 10760.08 | G85: 0 | H85: 0 | I85: 0 | J85: =SUM(J82:J84) -> 10760.08
C86: Total 2015 | D86: 3 | E86: 62 | F86: 4064.15 | G86: 0 | H86: 0 | I86: 0 | J86: 4064.15
C87: % d'évolution | D87: =IF(D86<> 0,((D85-D86)/D86*100)," - ") -> 133.3333333 | E87: =IF(E86<>0,((E85-E86)/E86*100)," - ") -> 275.8064516 | F87: =IF(F86<>0,((F85-F86)/F86*100)," - ") -> 164.755976 | G87: =IF(G86<>0,((G85-G86)/G86*100)," - ") -> - | H87: =IF(H86<> 0,((H85-H86)/H86*100)," - ") -> - | I87: =IF(I86<>0,((I85-I86)/I86*100)," - ") -> - | J87: =IF(J86<>0,((J85-J86)/J86*100)," - ") -> 164.755976
C88: Général | D88: 4 | E88: 331 | F88: 19474.62 | G88: 0 | H88: 0 | I88: 0 | J88: 19474.62
C89: Agricole | D89: 0 | E89: 0 | F89: 0 | G89: 0 | H89: 0 | I89: 0 | J89: 0
B90: Etats-Unis | C90: Minier | D90: 0 | E90: 0 | F90: 0 | G90: 0 | H90: 0 | I90: 0 | J90: 0
C91: Total 2016 | D91: =SUM(D88:D90) -> 4 | E91: 331 | F91: 19474.62 | G91: 0 | H91: 0 | I91: 0 | J91: =SUM(J88:J90) -> 19474.62
C92: Total 2015 | D92: 0 | E92: 0 | F92: 0 | G92: 0 | H92: 0 | I92: 0 | J92: 0
C93: % d'évolution | D93: =IF(D92<> 0,((D91-D92)/D92*100)," - ") -> - | E93: =IF(E92<>0,((E91-E92)/E92*100)," - ") -> - | F93: =IF(F92<>0,((F91-F92)/F92*100)," - ") -> - | G93: =IF(G92<>0,((G91-G92)/G92*100)," - ") -> - | H93: =IF(H92<> 0,((H91-H92)/H92*100)," - ") -> - | I93: =IF(I92<>0,((I91-I92)/I92*100)," - ") -> - | J93: =IF(J92<>0,((J91-J92)/J92*100)," - ") -> -
C94: Général | D94: 0 | E94: 0 | F94: 0 | G94: 0 | H94: 0 | I94: 0 | J94: 0
C95: Agricole | D95: 0 | E95: 0 | F95: 0 | G95: 0 | H95: 0 | I95: 0 | J95: 0
B96: Gabon | C96: Minier | D96: 0 | E96: 0 | F96: 0 | G96: 0 | H96: 0 | I96: 0 | J96: 0
C97: Total 2016 | D97: =SUM(D94:D96) -> 0 | E97: 0 | F97: 0 | G97: 0 | H97: 0 | I97: 0 | J97: =SUM(J94:J96) -> 0
C98: Total 2015 | D98: 0 | E98: 0 | F98: 0 | G98: 0 | H98: 0 | I98: 0 | J98: 0
C99: % d'évolution | D99: =IF(D98<> 0,((D97-D98)/D98*100)," - ") -> - | E99: =IF(E98<>0,((E97-E98)/E98*100)," - ") -> - | F99: =IF(F98<>0,((F97-F98)/F98*100)," - ") -> - | G99: =IF(G98<>0,((G97-G98)/G98*100)," - ") -> - | H99: =IF(H98<> 0,((H97-H98)/H98*100)," - ") -> - | I99: =IF(I98<>0,((I97-I98)/I98*100)," - ") -> - | J99: =IF(J98<>0,((J97-J98)/J98*100)," - ") -> -
C100: Général | D100: 0 | E100: 0 | F100: 0 | G100: 0 | H100: 0 | I100: 0 | J100: 0
C101: Agricole | D101: 0 | E101: 0 | F101: 0 | G101: 0 | H101: 0 | I101: 0 | J101: 0
B102: Guernesey | C102: Minier | D102: 0 | E102: 0 | F102: 0 | G102: 0 | H102: 0 | I102: 0 | J102: 0
C103: Total 2016 | D103: =SUM(D100:D102) -> 0 | E103: 0 | F103: 0 | G103: 0 | H103: 0 | I103: 0 | J103: =SUM(J100:J102) -> 0
C104: Total 2015 | D104: 0 | E104: 0 | F104: 0 | G104: 0 | H104: 0 | I104: 0 | J104: 0
C105: % d'évolution | D105: =IF(D104<> 0,((D103-D104)/D104*100)," - ") -> - | E105: =IF(E104<>0,((E103-E104)/E104*100)," - ") -> - | F105: =IF(F104<>0,((F103-F104)/F104*100)," - ") -> - | G105: =IF(G104<>0,((G103-G104)/G104*100)," - ") -> - | H105: =IF(H104<> 0,((H103-H104)/H104*100)," - ") -> - | I105: =IF(I104<>0,((I103-I104)/I104*100)," - ") -> - | J105: =IF(J104<>0,((J103-J104)/J104*100)," - ") -> -
C106: Général | D106: 1 | E106: 41 | F106: 2003.26 | G106: 0 | H106: 0 | I106: 0 | J106: 2003.26
C107: Agricole | D107: 0 | E107: 0 | F107: 0 | G107: 0 | H107: 0 | I107: 0 | J107: 0
B108: Inde | C108: Minier | D108: 0 | E108: 0 | F108: 0 | G108: 0 | H108: 0 | I108: 0 | J108: 0
C109: Total 2016 | D109: =SUM(D106:D108) -> 1 | E109: 41 | F109: 2003.26 | G109: 0 | H109: 0 | I109: 0 | J109: =SUM(J106:J108) -> 2003.26
C110: Total 2015 | D110: 0 | E110: 0 | F110: 0 | G110: 0 | H110: 0 | I110: 0 | J110: 0
C111: % d'évolution | D111: =IF(D110<> 0,((D109-D110)/D110*100)," - ") -> - | E111: =IF(E110<>0,((E109-E110)/E110*100)," - ") -> - | F111: =IF(F110<>0,((F109-F110)/F110*100)," - ") -> - | G111: =IF(G110<>0,((G109-G110)/G110*100)," - ") -> - | H111: =IF(H110<> 0,((H109-H110)/H110*100)," - ") -> - | I111: =IF(I110<>0,((I109-I110)/I110*100)," - ") -> - | J111: =IF(J110<>0,((J109-J110)/J110*100)," - ") -> -
C112: Général | D112: 7 | E112: 174 | F112: 7352.36 | G112: 0 | H112: 0 | I112: 0 | J112: 7352.36
C113: Agricole | D113: 0 | E113: 0 | F113: 0 | G113: 0 | H113: 0 | I113: 0 | J113: 0
B114: Israël | C114: Minier | D114: 0 | E114: 0 | F114: 0 | G114: 0 | H114: 0 | I114: 0 | J114: 0
C115: Total 2016 | D115: =SUM(D112:D114) -> 7 | E115: 174 | F115: 7352.36 | G115: 0 | H115: 0 | I115: 0 | J115: =SUM(J112:J114) -> 7352.36
C116: Total 2015 | D116: 6 | E116: 155 | F116: 6487.31 | G116: 0 | H116: 0 | I116: 0 | J116: 6487.31
C117: % d'évolution | D117: =IF(D116<> 0,((D115-D116)/D116*100)," - ") -> 16.66666667 | E117: =IF(E116<>0,((E115-E116)/E116*100)," - ") -> 12.25806452 | F117: =IF(F116<>0,((F115-F116)/F116*100)," - ") -> 13.33449457 | G117: =IF(G116<>0,((G115-G116)/G116*100)," - ") -> - | H117: =IF(H116<> 0,((H115-H116)/H116*100)," - ") -> - | I117: =IF(I116<>0,((I115-I116)/I116*100)," - ") -> - | J117: =IF(J116<>0,((J115-J116)/J116*100)," - ") -> 13.33449457
C118: Général | D118: 0 | E118: 0 | F118: 0 | G118: 0 | H118: 0 | I118: 0 | J118: 0
C119: Agricole | D119: 0 | E119: 0 | F119: 0 | G119: 0 | H119: 0 | I119: 0 | J119: 0
B120: Japon | C120: Minier | D120: 0 | E120: 0 | F120: 0 | G120: 0 | H120: 0 | I120: 0 | J120: 0
C121: Total 2016 | D121: =SUM(D118:D120) -> 0 | E121: 0 | F121: 0 | G121: 0 | H121: 0 | I121: 0 | J121: =SUM(J118:J120) -> 0
C122: Total 2015 | D122: 0 | E122: 0 | F122: 0 | G122: 0 | H122: 0 | I122: 0
C123: % d'évolution | D123: =IF(D122<> 0,((D121-D122)/D122*100)," - ") -> - | E123: =IF(E122<>0,((E121-E122)/E122*100)," - ") -> - | F123: =IF(F122<>0,((F121-F122)/F122*100)," - ") -> - | G123: =IF(G122<>0,((G121-G122)/G122*100)," - ") -> - | H123: =IF(H122<> 0,((H121-H122)/H122*100)," - ") -> - | I123: =IF(I122<>0,((I121-I122)/I122*100)," - ") -> - | J123: =IF(J122<>0,((J121-J122)/J122*100)," - ") -> -
C124: Général | D124: 0 | E124: 0 | F124: 0 | G124: 0 | H124: 0 | I124: 0 | J124: 0
C125: Agricole | D125: 0 | E125: 0 | F125: 0 | G125: 0 | H125: 0 | I125: 0 | J125: 0
B126: Jersey | C126: Minier | D126: 0 | E126: 0 | F126: 0 | G126: 0 | H126: 0 | I126: 0 | J126: 0
C127: Total 2016 | D127: =SUM(D124:D126) -> 0 | E127: 0 | F127: 0 | G127: 0 | H127: 0 | I127: 0 | J127: =SUM(J124:J126) -> 0
C128: Total 2015 | D128: 0 | E128: 0 | F128: 0 | G128: 0 | H128: 0 | I128: 0 | J128: 0
C129: % d'évolution | D129: =IF(D128<> 0,((D127-D128)/D128*100)," - ") -> - | E129: =IF(E128<>0,((E127-E128)/E128*100)," - ") -> - | F129: =IF(F128<>0,((F127-F128)/F128*100)," - ") -> - | G129: =IF(G128<>0,((G127-G128)/G128*100)," - ") -> - | H129: =IF(H128<> 0,((H127-H128)/H128*100)," - ") -> - | I129: =IF(I128<>0,((I127-I128)/I128*100)," - ") -> - | J129: =IF(J128<>0,((J127-J128)/J128*100)," - ") -> -
C130: Général | D130: 8 | E130: 198 | F130: 8900.46 | G130: 0 | H130: 0 | I130: 0 | J130: 8900.46
C131: Agricole | D131: 0 | E131: 0 | F131: 0 | G131: 0 | H131: 0 | I131: 0 | J131: 0
B132: Kosovo | C132: Minier | D132: 0 | E132: 0 | F132: 0 | G132: 0 | H132: 0 | I132: 0 | J132: 0
C133: Total 2016 | D133: =SUM(D130:D132) -> 8 | E133: 198 | F133: 8900.46 | G133: 0 | H133: 0 | I133: 0 | J133: =SUM(J130:J132) -> 8900.46
C134: Total 2015 | D134: 6 | E134: 163 | F134: 7052.43 | G134: 0 | H134: 0 | I134: 0 | J134: 7052.43
C135: % d'évolution | D135: =IF(D134<> 0,((D133-D134)/D134*100)," - ") -> 33.33333333 | E135: =IF(E134<>0,((E133-E134)/E134*100)," - ") -> 21.47239264 | F135: =IF(F134<>0,((F133-F134)/F134*100)," - ") -> 26.20415942 | G135: =IF(G134<>0,((G133-G134)/G134*100)," - ") -> - | H135: =IF(H134<> 0,((H133-H134)/H134*100)," - ") -> - | I135: =IF(I134<>0,((I133-I134)/I134*100)," - ") -> - | J135: =IF(J134<>0,((J133-J134)/J134*100)," - ") -> 26.20415942
C136: Général | D136: 4 | E136: 113 | F136: 4869.85 | G136: 0 | H136: 0 | I136: 0 | J136: 4869.85
C137: Agricole | D137: 0 | E137: 0 | F137: 0 | G137: 0 | H137: 0 | I137: 0 | J137: 0
B138: Macédoine | C138: Minier | D138: 0 | E138: 0 | F138: 0 | G138: 0 | H138: 0 | I138: 0 | J138: 0
C139: Total 2016 | D139: =SUM(D136:D138) -> 4 | E139: 113 | F139: 4869.85 | G139: 0 | H139: 0 | I139: 0 | J139: =SUM(J136:J138) -> 4869.85
C140: Total 2015 | D140: 3 | E140: 65 | F140: 3478.22 | G140: 0 | H140: 0 | I140: 0 | J140: 3478.22
C141: % d'évolution | D141: =IF(D140<> 0,((D139-D140)/D140*100)," - ") -> 33.33333333 | E141: =IF(E140<>0,((E139-E140)/E140*100)," - ") -> 73.84615385 | F141: =IF(F140<>0,((F139-F140)/F140*100)," - ") -> 40.00983262 | G141: =IF(G140<>0,((G139-G140)/G140*100)," - ") -> - | H141: =IF(H140<> 0,((H139-H140)/H140*100)," - ") -> - | I141: =IF(I140<>0,((I139-I140)/I140*100)," - ") -> - | J141: =IF(J140<>0,((J139-J140)/J140*100)," - ") -> 40.00983262
C142: Général | D142: 6 | E142: 128 | F142: 12772.95 | G142: 0 | H142: 0 | I142: 0 | J142: 12772.95
C143: Agricole | D143: 0 | E143: 0 | F143: 0 | G143: 0 | H143: 0 | I143: 0 | J143: 0
B144: Madagascar | C144: Minier | D144: 0 | E144: 0 | F144: 0 | G144: 0 | H144: 0 | I144: 0 | J144: 0
C145: Total 2016 | D145: =SUM(D142:D144) -> 6 | E145: 128 | F145: 12772.95 | G145: 0 | H145: 0 | I145: 0 | J145: =SUM(J142:J144) -> 12772.95
C146: Total 2015 | D146: 5 | E146: 151 | F146: 7008.71 | G146: 0 | H146: 0 | I146: 0 | J146: 7008.71
C147: % d'évolution | D147: =IF(D146<> 0,((D145-D146)/D146*100)," - ") -> 20 | E147: =IF(E146<>0,((E145-E146)/E146*100)," - ") -> -15.23178808 | F147: =IF(F146<>0,((F145-F146)/F146*100)," - ") -> 82.24395074 | G147: =IF(G146<>0,((G145-G146)/G146*100)," - ") -> - | H147: =IF(H146<> 0,((H145-H146)/H146*100)," - ") -> - | I147: =IF(I146<>0,((I145-I146)/I146*100)," - ") -> - | J147: =IF(J146<>0,((J145-J146)/J146*100)," - ") -> 82.24395074
C148: Général | D148: 17 | E148: 870 | F148: 45112.25 | G148: 0 | H148: 0 | I148: 0 | J148: 45112.25
C149: Agricole | D149: 0 | E149: 0 | F149: 0 | G149: 0 | H149: 0 | I149: 0 | J149: 0
B150: Mali | C150: Minier | D150: 0 | E150: 0 | F150: 0 | G150: 0 | H150: 0 | I150: 0 | J150: 0
C151: Total 2016 | D151: =SUM(D148:D150) -> 17 | E151: 870 | F151: 45112.25 | G151: 0 | H151: 0 | I151: 0 | J151: =SUM(J148:J150) -> 45112.25
C152: Total 2015 | D152: 13 | E152: 676 | F152: 27787.55 | G152: 4 | H152: 116 | I152: 6071.82 | J152: 33859.37
A153: CONVENTIONS BILATERALES | C153: % d'évolution | D153: =IF(D152<> 0,((D151-D152)/D152*100)," - ") -> 30.76923077 | E153: =IF(E152<>0,((E151-E152)/E152*100)," - ") -> 28.69822485 | F153: =IF(F152<>0,((F151-F152)/F152*100)," - ") -> 62.34698633 | G153: =IF(G152<>0,((G151-G152)/G152*100)," - ") -> -100 | H153: =IF(H152<> 0,((H151-H152)/H152*100)," - ") -> -100 | I153: =IF(I152<>0,((I151-I152)/I152*100)," - ") -> -100 | J153: =IF(J152<>0,((J151-J152)/J152*100)," - ") -> 33.23416827
C154: Général | D154: 624 | E154: 19019 | F154: 909095.59 | G154: 5 | H154: 156 | I154: 8349.44 | J154: 917445.03
C155: Agricole | D155: 3 | E155: 74 | F155: 4007.18 | G155: 0 | H155: 0 | I155: 0 | J155: 4192.82
B156: Maroc | C156: Minier | D156: 0 | E156: 0 | F156: 0 | G156: 0 | H156: 0 | I156: 0 | J156: 0
C157: Total 2016 | D157: =SUM(D154:D156) -> 627 | E157: 19093 | F157: 913102.77 | G157: 5 | H157: 156 | I157: 8349.44 | J157: =SUM(J154:J156) -> 921637.85
C158: Total 2015 | D158: 754 | E158: 22797 | F158: 1053972.33 | G158: 21 | H158: 619 | I158: 29415.45 | J158: 1083387.78
C159: % d'évolution | D159: =IF(D158<> 0,((D157-D158)/D158*100)," - ") -> -16.84350133 | E159: =IF(E158<>0,((E157-E158)/E158*100)," - ") -> -16.2477519 | F159: =IF(F158<>0,((F157-F158)/F158*100)," - ") -> -13.36558427 | G159: =IF(G158<>0,((G157-G158)/G158*100)," - ") -> -76.19047619 | H159: =IF(H158<> 0,((H157-H158)/H158*100)," - ") -> -74.79806139 | I159: =IF(I158<>0,((I157-I158)/I158*100)," - ") -> -71.61546058 | J159: =IF(J158<>0,((J157-J158)/J158*100)," - ") -> -14.93001241
C160: Général | D160: 2 | E160: 28 | F160: 1438.6 | G160: 0 | H160: 0 | I160: 0 | J160: 1438.6
C161: Agricole | D161: 0 | E161: 0 | F161: 0 | G161: 0 | H161: 0 | I161: 0 | J161: 0
B162: Mauritanie | C162: Minier | D162: 0 | E162: 0 | F162: 0 | G162: 0 | H162: 0 | I162: 0 | J162: 0
C163: Total 2016 | D163: =SUM(D160:D162) -> 2 | E163: 28 | F163: 1438.6 | G163: 0 | H163: 0 | I163: 0 | J163: =SUM(J160:J162) -> 1438.6
C164: Total 2015 | D164: 5 | E164: 110 | F164: 5023.57 | G164: 0 | H164: 0 | I164: 0 | J164: 5023.57
C165: % d'évolution | D165: =IF(D164<> 0,((D163-D164)/D164*100)," - ") -> -60 | E165: =IF(E164<>0,((E163-E164)/E164*100)," - ") -> -74.54545455 | F165: =IF(F164<>0,((F163-F164)/F164*100)," - ") -> -71.36299484 | G165: =IF(G164<>0,((G163-G164)/G164*100)," - ") -> - | H165: =IF(H164<> 0,((H163-H164)/H164*100)," - ") -> - | I165: =IF(I164<>0,((I163-I164)/I164*100)," - ") -> - | J165: =IF(J164<>0,((J163-J164)/J164*100)," - ") -> -71.36299484
C166: Général | D166: 0 | E166: 0 | F166: 0 | G166: 0 | H166: 0 | I166: 0 | J166: 0
C167: Agricole | D167: 0 | E167: 0 | F167: 0 | G167: 0 | H167: 0 | I167: 0 | J167: 0
B168: Monaco | C168: Minier | D168: 0 | E168: 0 | F168: 0 | G168: 0 | H168: 0 | I168: 0 | J168: 0
C169: Total 2016 | D169: =SUM(D166:D168) -> 0 | E169: 0 | F169: 0 | G169: 0 | H169: 0 | I169: 0 | J169: =SUM(J166:J168) -> 0
C170: Total 2015 | D170: 0 | E170: 0 | F170: 0 | G170: 0 | H170: 0 | I170: 0 | J170: 0
C171: % d'évolution | D171: =IF(D170<> 0,((D169-D170)/D170*100)," - ") -> - | E171: =IF(E170<>0,((E169-E170)/E170*100)," - ") -> - | F171: =IF(F170<>0,((F169-F170)/F170*100)," - ") -> - | G171: =IF(G170<>0,((G169-G170)/G170*100)," - ") -> - | H171: =IF(H170<> 0,((H169-H170)/H170*100)," - ") -> - | I171: =IF(I170<>0,((I169-I170)/I170*100)," - ") -> - | J171: =IF(J170<>0,((J169-J170)/J170*100)," - ") -> -
C172: Général | D172: 6 | E172: 162 | F172: 7863.01 | G172: 0 | H172: 0 | I172: 0 | J172: 7863.01
C173: Agricole | D173: 0 | E173: 0 | F173: 0 | G173: 0 | H173: 0 | I173: 0 | J173: 0
B174: Monténégro | C174: Minier | D174: 0 | E174: 0 | F174: 0 | G174: 0 | H174: 0 | I174: 0 | J174: 0
C175: Total 2016 | D175: =SUM(D172:D174) -> 6 | E175: 162 | F175: 7863.01 | G175: 0 | H175: 0 | I175: 0 | J175: =SUM(J172:J174) -> 7863.01
C176: Total 2015 | D176: 3 | E176: 55 | F176: 2920.2 | G176: 0 | H176: 0 | I176: 0 | J176: 2920.2
C177: % d'évolution | D177: =IF(D176<> 0,((D175-D176)/D176*100)," - ") -> 100 | E177: =IF(E176<>0,((E175-E176)/E176*100)," - ") -> 194.5454545 | F177: =IF(F176<>0,((F175-F176)/F176*100)," - ") -> 169.2627217 | G177: =IF(G176<>0,((G175-G176)/G176*100)," - ") -> - | H177: =IF(H176<> 0,((H175-H176)/H176*100)," - ") -> - | I177: =IF(I176<>0,((I175-I176)/I176*100)," - ") -> - | J177: =IF(J176<>0,((J175-J176)/J176*100)," - ") -> 169.2627217
C178: Général | D178: 0 | E178: 0 | F178: 0 | G178: 0 | H178: 0 | I178: 0 | J178: 0
C179: Agricole | D179: 0 | E179: 0 | F179: 0 | G179: 0 | H179: 0 | I179: 0 | J179: 0
B180: Niger | C180: Minier | D180: 0 | E180: 0 | F180: 0 | G180: 0 | H180: 0 | I180: 0 | J180: 0
C181: Total 2016 | D181: =SUM(D178:D180) -> 0 | E181: 0 | F181: 0 | G181: 0 | H181: 0 | I181: 0 | J181: =SUM(J178:J180) -> 0
C182: Total 2015 | D182: 0 | E182: 0 | F182: 0 | G182: 0 | H182: 0 | I182: 0 | J182: 0
C183: % d'évolution | D183: =IF(D182<> 0,((D181-D182)/D182*100)," - ") -> - | E183: =IF(E182<>0,((E181-E182)/E182*100)," - ") -> - | F183: =IF(F182<>0,((F181-F182)/F182*100)," - ") -> - | G183: =IF(G182<>0,((G181-G182)/G182*100)," - ") -> - | H183: =IF(H182<> 0,((H181-H182)/H182*100)," - ") -> - | I183: =IF(I182<>0,((I181-I182)/I182*100)," - ") -> - | J183: =IF(J182<>0,((J181-J182)/J182*100)," - ") -> -
C184: Général | D184: 1 | E184: 22 | F184: 1552.32 | G184: 0 | H184: 0 | I184: 0 | J184: 1552.32
C185: Agricole | D185: 0 | E185: 0 | F185: 0 | G185: 0 | H185: 0 | I185: 0 | J185: 0
B186: Philippines | C186: Minier | D186: 0 | E186: 0 | F186: 0 | G186: 0 | H186: 0 | I186: 0 | J186: 0
C187: Total 2016 | D187: =SUM(D184:D186) -> 1 | E187: 22 | F187: 1552.32 | G187: 0 | H187: 0 | I187: 0 | J187: =SUM(J184:J186) -> 1552.32
C188: Total 2015 | D188: 0 | E188: 0 | F188: 0 | G188: 0 | H188: 0 | I188: 0 | J188: 0
C189: % d'évolution | D189: =IF(D188<> 0,((D187-D188)/D188*100)," - ") -> - | E189: =IF(E188<>0,((E187-E188)/E188*100)," - ") -> - | F189: =IF(F188<>0,((F187-F188)/F188*100)," - ") -> - | G189: =IF(G188<>0,((G187-G188)/G188*100)," - ") -> - | H189: =IF(H188<> 0,((H187-H188)/H188*100)," - ") -> - | I189: =IF(I188<>0,((I187-I188)/I188*100)," - ") -> - | J189: =IF(J188<>0,((J187-J188)/J188*100)," - ") -> -
C190: Général | D190: 10 | E190: 208 | F190: 12790.87 | G190: 0 | H190: 0 | I190: 0 | J190: 13558.21
C191: Agricole | D191: 0 | E191: 0 | F191: 0 | G191: 0 | H191: 0 | I191: 0 | J191: 0
B192: Québec | C192: Minier | D192: 0 | E192: 0 | F192: 0 | G192: 0 | H192: 0 | I192: 0 | J192: 0
C193: Total 2016 | D193: =SUM(D190:D192) -> 10 | E193: 208 | F193: 12790.87 | G193: 0 | H193: 0 | I193: 0 | J193: =SUM(J190:J192) -> 13558.21
C194: Total 2015 | D194: 14 | E194: 284 | F194: 12979.49 | G194: 0 | H194: 0 | I194: 0 | J194: 12979.49
C195: % d'évolution | D195: =IF(D194<> 0,((D193-D194)/D194*100)," - ") -> -28.57142857 | E195: =IF(E194<>0,((E193-E194)/E194*100)," - ") -> -26.76056338 | F195: =IF(F194<>0,((F193-F194)/F194*100)," - ") -> -1.453215804 | G195: =IF(G194<>0,((G193-G194)/G194*100)," - ") -> - | H195: =IF(H194<> 0,((H193-H194)/H194*100)," - ") -> - | I195: =IF(I194<>0,((I193-I194)/I194*100)," - ") -> - | J195: =IF(J194<>0,((J193-J194)/J194*100)," - ") -> 4.458726807
C196: Général | D196: 0 | E196: 0 | F196: 0 | G196: 0 | H196: 0 | I196: 0 | J196: 0
C197: Agricole | D197: 0 | E197: 0 | F197: 0 | G197: 0 | H197: 0 | I197: 0 | J197: 0
B198: Saint-Marin | C198: Minier | D198: 0 | E198: 0 | F198: 0 | G198: 0 | H198: 0 | I198: 0 | J198: 0
C199: Total 2016 | D199: =SUM(D196:D198) -> 0 | E199: 0 | F199: 0 | G199: 0 | H199: 0 | I199: 0 | J199: =SUM(J196:J198) -> 0
C200: Total 2015 | D200: 0 | E200: 0 | F200: 0 | G200: 0 | H200: 0 | I200: 0 | J200: 0
C201: % d'évolution | D201: =IF(D200<> 0,((D199-D200)/D200*100)," - ") -> - | E201: =IF(E200<>0,((E199-E200)/E200*100)," - ") -> - | F201: =IF(F200<>0,((F199-F200)/F200*100)," - ") -> - | G201: =IF(G200<>0,((G199-G200)/G200*100)," - ") -> - | H201: =IF(H200<> 0,((H199-H200)/H200*100)," - ") -> - | I201: =IF(I200<>0,((I199-I200)/I200*100)," - ") -> - | J201: =IF(J200<>0,((J199-J200)/J200*100)," - ") -> -
... 42 more rows

Sheet Détail Décrets
B1: ACCORDS INTERNATIONAUX
B5: Paiements des prestations en espèces d'incapacité temporaire
B6: (assurances AT-MP)
A8: DECRETS DE COORDINATION | D8: Transfert de résidence autorisé | G8: Rechute dans l'autre pays | J8: Total des
B9: Pays | C9: Régime | D9: Nombre de | E9: Nombre de jours | F9: Montant | G9: Nombre de | H9: Nombre de jours | I9: Montant | J9: montants
D10: bénéficiaires | E10: indemnisés | F10: (euros) | G10: bénéficiaires | H10: indemnisés | I10: (euros) | J10: (euros)
C11: Général | D11: 3 | E11: 108 | F11: 11501.04 | G11: 0 | H11: 0 | I11: 0 | J11: 11501.04
C12: Agricole | D12: 0 | E12: 0 | F12: 0 | G12: 0 | H12: 0 | I12: 0 | J12: 0
B13: Nouvelle-Calédonie | C13: Minier | D13: 0 | E13: 0 | F13: 0 | G13: 0 | H13: 0 | I13: 0 | J13: 0
C14: Total 2016 | D14: =SUM(D11:D13) -> 3 | E14: 108 | F14: 11501.04 | G14: 0 | H14: 0 | I14: 0 | J14: 11501.04
C15: Total 2015 | D15: 4 | E15: 120 | F15: 9781.5 | G15: 0 | H15: 0 | I15: 0 | J15: 9781.5
C16: % d'évolution | D16: =IF(D15<> 0,((D14-D15)/D15*100)," - ") -> -25 | E16: =IF(E15<>0,((E14-E15)/E15*100)," - ") -> -10 | F16: 17.57951234 | G16: - | H16: - | I16: - | J16: 17.57951234
C17: Général | D17: 1 | E17: 67 | F17: 3605.27 | G17: 0 | H17: 0 | I17: 0 | J17: 4825.74
C18: Agricole | D18: 0 | E18: 0 | F18: 0 | G18: 0 | H18: 0 | I18: 0 | J18: 0
B19: Polynésie française | C19: Minier | D19: 0 | E19: 0 | F19: 0 | G19: 0 | H19: 0 | I19: 0 | J19: 0
C20: Total 2016 | D20: =SUM(D17:D19) -> 1 | E20: 67 | F20: 3605.27 | G20: 0 | H20: 0 | I20: 0 | J20: 4825.74
C21: Total 2015 | D21: 2 | E21: 55 | F21: 2594.78 | G21: 0 | H21: 0 | I21: 0 | J21: 2594.78
C22: % d'évolution | D22: =IF(D21<> 0,((D20-D21)/D21*100)," - ") -> -50 | E22: =IF(E21<>0,((E20-E21)/E21*100)," - ") -> 21.81818182 | F22: 38.94318593 | G22: - | H22: - | I22: - | J22: 85.97877277
C23: Général | D23: 0 | E23: 0 | F23: 0 | G23: 0 | H23: 0 | I23: 0 | J23: 0
C24: Agricole | D24: 0 | E24: 0 | F24: 0 | G24: 0 | H24: 0 | I24: 0 | J24: 0
B25: Saint-Pierre-et-Miquelon | C25: Minier | D25: 0 | E25: 0 | F25: 0 | G25: 0 | H25: 0 | I25: 0 | J25: 0
C26: Total 2016 | D26: =SUM(D23:D25) -> 0 | E26: 0 | F26: 0 | G26: 0 | H26: 0 | I26: 0 | J26: 0
C27: Total 2015 | D27: 1 | E27: 48 | F27: 2650.08 | G27: 1 | H27: 19 | I27: 812.63 | J27: 3462.71
C28: % d'évolution | D28: =IF(D27<> 0,((D26-D27)/D27*100)," - ") -> -100 | E28: =IF(E27<>0,((E26-E27)/E27*100)," - ") -> -100 | F28: -100 | G28: -100 | H28: -100 | I28: -100 | J28: -100
C29: Général | D29: =D17+D11+D23 -> 4 | E29: 175 | F29: 15106.31 | G29: 0 | H29: 0 | I29: 0 | J29: =J11+J17+J23 -> 16326.78
C30: Agricole | D30: 0 | E30: 0 | F30: 0 | G30: 0 | H30: 0 | I30: 0 | J30: =J12+J18+J24 -> 0
B31: Sous | C31: Minier | D31: 0 | E31: 0 | F31: 0 | G31: 0 | H31: 0 | I31: 0 | J31: =J13+J19+J25 -> 0
B32: total | C32: Total 2016 | D32: =SUM(D29:D31) -> 4 | E32: 175 | F32: =SUM(F29:F31) -> 15106.31 | G32: 0 | H32: 0 | I32: 0 | J32: =SUM(J29:J31) -> 16326.78
C33: Total 2015 | D33: =D21+D15+D27 -> 7 | E33: 223 | F33: 15026.36 | G33: 1 | H33: 19 | I33: 812.63 | J33: =J15+J21+J27 -> 15838.99
C34: % d'évolution | D34: =IF(D33<> 0,((D32-D33)/D33*100)," - ") -> -42.85714286 | E34: =IF(E33<>0,((E32-E33)/E33*100)," - ") -> -21.52466368 | F34: 0.5320649845 | G34: -100 | H34: -100 | I34: -100 | J34: 3.079678692

Sheet Total Général
B1: ACCORDS INTERNATIONAUX
B4: Paiements des prestations en espèces d'incapacité temporaire
B5: (assurances AT-MP)
D7: Transfert de résidence autorisé | G7: Rechute dans l'autre pays | J7: Total des
B8: Pays | C8: Régime | D8: Nombre de | E8: Nombre de jours | F8: Montant | G8: Nombre de | H8: Nombre de jours | I8: Montant | J8: montants
D9: bénéficiaires | E9: indemnisés | F9: (euros) | G9: bénéficiaires | H9: indemnisés | I9: (euros) | J9: (euros)
C10: Général | D10: ='Détail Bilatéraux'!D238+'Détail Décrets'!D29 -> 1552 | E10: ='Détail Bilatéraux'!E238+'Détail Décrets'!E29 -> 47351 | F10: ='Détail Bilatéraux'!F238+'Détail Décrets'!F29 -> 2318597.09 | G10: ='Détail Bilatéraux'!G238+'Détail Décrets'!G29 -> 10 | H10: ='Détail Bilatéraux'!H238+'Détail Décrets'!H29 -> 321 | I10: ='Détail Bilatéraux'!I238+'Détail Décrets'!I29 -> 16660.97 | J10: ='Détail Bilatéraux'!J238+'Détail Décrets'!J29 -> 2340759.21
C11: Agricole | D11: ='Détail Bilatéraux'!D239+'Détail Décrets'!D30 -> 5 | E11: ='Détail Bilatéraux'!E239+'Détail Décrets'!E30 -> 131 | F11: ='Détail Bilatéraux'!F239+'Détail Décrets'!F30 -> 6180.77 | G11: ='Détail Bilatéraux'!G239+'Détail Décrets'!G30 -> 0 | H11: ='Détail Bilatéraux'!H239+'Détail Décrets'!H30 -> 0 | I11: ='Détail Bilatéraux'!I239+'Détail Décrets'!I30 -> 0 | J11: ='Détail Bilatéraux'!J239+'Détail Décrets'!J30 -> 6366.41
B12: Total | C12: Minier | D12: ='Détail Bilatéraux'!D240+'Détail Décrets'!D31 -> 0 | E12: ='Détail Bilatéraux'!E240+'Détail Décrets'!E31 -> 0 | F12: ='Détail Bilatéraux'!F240+'Détail Décrets'!F31 -> 0 | G12: ='Détail Bilatéraux'!G240+'Détail Décrets'!G31 -> 0 | H12: ='Détail Bilatéraux'!H240+'Détail Décrets'!H31 -> 0 | I12: ='Détail Bilatéraux'!I240+'Détail Décrets'!I31 -> 0 | J12: ='Détail Bilatéraux'!J240+'Détail Décrets'!J31 -> 0
B13: Général | C13: ="Total "&'Détail Bilatéraux'!$U$2 -> Total 2016 | D13: =SUM(D10:D12) -> 1557 | E13: =SUM(E10:E12) -> 47482 | F13: 2324777.86 | G13: 10 | H13: 321 | I13: =SUM(I10:I12) -> 16660.97 | J13: =SUM(J10:J12) -> 2347125.62
C14: ="Total "&'Détail Bilatéraux'!$U$2-1 -> Total 2015 | D14: ='Détail Bilatéraux'!D242+'Détail Décrets'!D33 -> 1767 | E14: ='Détail Bilatéraux'!E242+'Détail Décrets'!E33 -> 53089 | F14: ='Détail Bilatéraux'!F242+'Détail Décrets'!F33 -> 2468260.18 | G14: ='Détail Bilatéraux'!G242+'Détail Décrets'!G33 -> 51 | H14: ='Détail Bilatéraux'!H242+'Détail Décrets'!H33 -> 1334 | I14: ='Détail Bilatéraux'!I242+'Détail Décrets'!I33 -> 62810.72 | J14: ='Détail Bilatéraux'!J242+'Détail Décrets'!J33 -> 2531070.9
C15: % d'évolution | D15: =IF(D14<> 0,((D13-D14)/D14*100)," - ") -> -11.88455008 | E15: =IF(E14<>0,((E13-E14)/E14*100)," - ") -> -10.56150992 | F15: =IF(F14<>0,((F13-F14)/F14*100)," - ") -> -5.813095441 | G15: =IF(G14<>0,((G13-G14)/G14*100)," - ") -> -80.39215686 | H15: =IF(H14<> 0,((H13-H14)/H14*100)," - ") -> -75.93703148 | I15: =IF(I14<>0,((I13-I14)/I14*100)," - ") -> -73.47432094 | J15: =IF(J14<>0,((J13-J14)/J14*100)," - ") -> -7.26748824

Sheet Paramètres (hidden)
A2: Algérie | B2: B10
A3: Andorre | B3: B16
A4: Argentine | B4: B22
A5: Bénin | B5: B28
A6: Bosnie-Herzégovine | B6: B34
A7: Brésil | B7: B40
A8: Cameroun | B8: B46
A9: Canada | B9: B52
A10: Cap-Vert | B10: B58
A11: Chili | B11: B64
A12: Congo | B12: B70
A13: Corée | B13: B76
A14: Côte d'Ivoire | B14: B82
A15: Etats-Unis | B15: B88
A16: Gabon | B16: B94
A17: Guernesey | B17: B100
A18: Inde | B18: B106
A19: Israël | B19: B112
A20: Japon | B20: B118
A21: Jersey | B21: B124
A22: kosovo | B22: B130
A23: Macédoine | B23: B136
A24: Madagascar | B24: B142
A25: Mali | B25: B148
A26: Maroc | B26: B154
A27: Mauritanie | B27: B160
A28: Monaco | B28: B166
A29: Monténégro | B29: B172
A30: Niger | B30: B178
A31: Philippines | B31: B184
A32: Québec | B32: B190
A33: Saint-Marin | B33: B196
A34: Sénégal | B34: B202
A35: Serbie | B35: B208
A36: Togo | B36: B214
A37: Tunisie | B37: B220
A38: Turquie | B38: B226
A39: Uruguay | B39: B232
